bitfinex-derivatives/quotes_BTCF0:USTF0_20210708
["timestamp","ask_amount","ask_price","bid_price","bid_amount"]
[1625717231148,1.05919259,33224.0,33223.0,3.53361978]
[1625717231450,0.97391141,33224.0,33223.0,3.53361978]
[1625717231598,1.65484904,33224.0,33223.0,2.29813197]
[1625717231824,0.97354891,33224.0,33223.0,2.29813197]
[1625717232278,1.65516623,33224.0,33223.0,3.53487961]
[1625717233176,1.74586623,33224.0,33223.0,3.53487961]
[1625717233476,1.65516623,33224.0,33223.0,3.53487961]
[1625717235951,2.67732819,33224.0,33223.0,3.53487961]
[1625717236251,2.67732819,33224.0,33223.0,2.29813197]
[1625717236567,2.67732819,33224.0,33216.0,1.59032383]
[1625717236727,4.8685194,33224.0,33223.0,0.26506953]
[1625717237001,4.8685194,33224.0,33221.0,0.61850968]
[1625717237301,1.46253124,33224.0,33222.0,0.00415601]
[1625717237601,2.99355552,33224.0,33222.0,0.00415601]
[1625717238204,2.99355552,33224.0,33211.0,1.59048779]
[1625717238205,3.9274,33216.0,33211.0,1.59048779]
[1625717238356,0.057,33215.0,33211.0,1.59048779]
[1625717238506,0.057,33215.0,33210.0,0.003]
[1625717238507,0.057,33215.0,33212.0,0.00415815]
[1625717238957,1.057,33215.0,33211.0,0.00415837]
[1625717239857,1.0,33214.0,33211.0,0.00415837]
[1625717240009,0.72172632,33212.0,33211.0,0.00415837]
[1625717240158,1.77872632,33212.0,33211.0,0.00415837]
[1625717241666,0.77872632,33212.0,33211.0,0.00415837]
[1625717244438,1.77872632,33212.0,33211.0,0.00415837]
[1625717244812,1.77872632,33212.0,33204.0,1.58942242]
[1625717244963,1.77872632,33212.0,33203.0,1.58950678]
[1625717245114,1.77872632,33212.0,33202.0,1.58951404]
[1625717245265,0.77872632,33212.0,33209.0,0.003]
[1625717245711,1.0,33210.0,33209.0,0.003]
[1625717245862,1.057,33210.0,33209.0,0.003]
[1625717246161,1.29757544,33210.0,33209.0,0.003]
[1625717248341,1.29757544,33210.0,33207.0,0.001]
[1625717248640,0.29757544,33210.0,33207.0,0.001]
[1625717250145,0.24057544,33208.0,33207.0,0.001]
[1625717250295,0.29757544,33208.0,33207.0,0.001]
[1625717250445,1.29757544,33208.0,33207.0,0.001]
[1625717251947,4.92457544,33208.0,33207.0,0.001]
[1625717252546,3.92457544,33208.0,33207.0,0.001]
[1625717253898,4.92457544,33208.0,33207.0,0.001]
[1625717255627,4.92457544,33208.0,33207.0,0.29439]
[1625717255779,3.92457544,33208.0,33207.0,0.29439]
[1625717256529,3.92457544,33208.0,33207.0,0.29854853]
[1625717256829,3.92457544,33208.0,33207.0,1.53194158]
[1625717257281,3.92457544,33208.0,33207.0,1.53094158]
[1625717257429,0.24057544,33208.0,33207.0,1.53094158]
[1625717257880,0.24057544,33208.0,33207.0,4.52593668]
[1625717260806,4.70747544,33208.0,33207.0,4.52593668]
[1625717261107,4.70747544,33208.0,33207.0,2.94035104]
[1625717261256,5.01452544,33208.0,33207.0,2.94035104]
[1625717262233,5.07152544,33208.0,33207.0,2.94035104]
[1625717262536,5.07152544,33208.0,33207.0,0.00415853]
[1625717262682,5.07152544,33208.0,33206.0,1.23334789]
[1625717262868,5.01452544,33208.0,33205.0,1.23335176]
[1625717263034,4.70747544,33208.0,33207.0,0.0041489]
[1625717263165,4.70747544,33208.0,33206.0,1.23749892]
[1625717263304,4.70747544,33208.0,33207.0,1.23328749]
[1625717263446,4.70747544,33208.0,33207.0,1.23743623]
[1625717263582,4.76447544,33208.0,33207.0,2.64688227]
[1625717263809,4.76447544,33208.0,33207.0,1.23743623]
[1625717265535,4.76447544,33208.0,33207.0,0.00414874]
[1625717266511,4.76447544,33208.0,33206.0,0.00414539]
[1625717266664,1.0,33207.0,33203.0,1.23434269]
[1625717266811,0.057,33206.0,33204.0,1.05695447]
[1625717266961,0.057,33206.0,33204.0,1.06110005]
[1625717267262,0.057,33206.0,33205.0,0.00414552]
[1625717267413,0.057,33206.0,33205.0,1.0610952]
[1625717268240,0.057,33206.0,33205.0,1.3321752]
[1625717268388,0.24057544,33206.0,33205.0,1.3321752]
[1625717268539,0.24057544,33206.0,33205.0,2.5650722]
[1625717268690,0.24057544,33206.0,33205.0,3.97402504]
[1625717269667,0.24057544,33206.0,33205.0,5.55898359]
[1625717270420,0.24057544,33206.0,33205.0,5.79955903]
[1625717271317,0.24057544,33206.0,33205.0,7.56040542]
[1625717271467,0.24057544,33206.0,33205.0,5.79955903]
[1625717275152,0.24057544,33208.0,33205.0,5.79955903]
[1625717275303,0.24157544,33208.0,33205.0,5.79955903]
[1625717275453,0.24157544,33208.0,33207.0,5.28278344]
[1625717275904,0.24157544,33208.0,33207.0,5.28692612]
[1625717276506,0.24157544,33208.0,33207.0,5.52750156]
[1625717277783,0.24057544,33212.0,33207.0,5.52750156]
[1625717277933,0.24057544,33212.0,33211.0,5.282537]
[1625717278236,0.24057544,33212.0,33211.0,5.28667911]
[1625717278385,0.24057544,33212.0,33211.0,5.52725455]
[1625717280191,0.24057544,33212.0,33211.0,10.80455455]
[1625717281690,0.24057544,33212.0,33211.0,10.80041244]
[1625717281840,0.24057544,33212.0,33211.0,10.80455484]
[1625717286569,0.002,33214.0,33211.0,10.80455484]
[1625717286869,0.002,33214.0,33213.0,5.28686541]
[1625717287020,0.002,33214.0,33213.0,5.60370541]
[1625717287321,0.001,33215.0,33213.0,5.60370541]
[1625717287470,0.001,33215.0,33213.0,5.60785125]
[1625717287620,0.001,33215.0,33214.0,5.29089753]
[1625717288595,0.001,33215.0,33214.0,5.77204841]
[1625717294452,0.001,33215.0,33214.0,4.1860229]
[1625717295802,0.001,33215.0,33214.0,5.77194876]
[1625717296331,0.24157544,33218.0,33214.0,5.77194876]
[1625717296630,0.24157544,33218.0,33217.0,4.40506513]
[1625717296929,0.24157544,33218.0,33217.0,4.40921116]
[1625717300310,0.29857544,33218.0,33217.0,2.99959032]
[1625717300761,0.53915088,33218.0,33217.0,2.99959032]
[1625717300911,0.53915088,33218.0,33217.0,1.76617208]
[1625717301061,0.53915088,33218.0,33217.0,0.70895645]
[1625717301811,0.53915088,33218.0,33217.0,0.00414603]
[1625717301961,0.80837088,33218.0,33217.0,0.00414603]
[1625717302261,0.80837088,33218.0,33216.0,0.70889747]
[1625717302564,0.80837088,33218.0,33217.0,0.00414903]
[1625717303612,0.80837088,33218.0,33216.0,0.00414943]
[1625717304663,1.4905081,33218.0,33215.0,0.0041504]
[1625717304811,1.24057544,33216.0,33215.0,0.0041504]
[1625717304961,1.29757544,33216.0,33215.0,0.0041504]
[1625717305637,0.29757544,33216.0,33215.0,0.0041504]
[1625717307363,0.29757544,33216.0,33215.0,0.70912976]
[1625717307963,0.29757544,33216.0,33215.0,0.0041504]
[1625717308939,0.29757544,33216.0,33215.0,0.70931223]
[1625717310443,0.29757544,33216.0,33215.0,1.76747575]
[1625717311268,4.92927544,33216.0,33215.0,1.76747575]
[1625717314497,4.92927544,33216.0,33215.0,3.00306208]
[1625717316449,4.92927544,33216.0,33215.0,1.76747575]
[1625717316599,4.92927544,33216.0,33215.0,3.00330356]
[1625717318477,4.92927544,33216.0,33215.0,1.76747575]
[1625717319902,4.92927544,33216.0,33215.0,3.0032896]
[1625717321177,4.92927544,33216.0,33215.0,1.76747575]
[1625717322380,5.61282122,33216.0,33215.0,1.76747575]
[1625717322528,4.92927544,33216.0,33215.0,1.76747575]
[1625717322832,4.92927544,33216.0,33215.0,3.00343466]
[1625717324255,4.92927544,33216.0,33215.0,1.76747575]
[1625717324554,5.61300676,33216.0,33215.0,1.76747575]
[1625717325685,5.70250676,33216.0,33215.0,1.76747575]
[1625717325829,5.89769676,33216.0,33215.0,1.76747575]
[1625717326580,7.43645269,33216.0,33215.0,2.29749012]
[1625717328459,7.43645269,33216.0,33215.0,3.53460581]
[1625717331613,7.43645269,33216.0,33215.0,2.29749012]
[1625717332063,7.19587725,33216.0,33215.0,2.29749012]
[1625717332288,7.19587725,33216.0,33215.0,3.53452815]
[1625717332517,6.17009694,33216.0,33215.0,3.53452815]
[1625717333339,7.1323987,33216.0,33215.0,3.53452815]
[1625717334464,7.1323987,33216.0,33215.0,2.20242815]
[1625717334614,7.1323987,33216.0,33214.0,0.5301614]
[1625717334615,9.70333108,33216.0,33214.0,0.5301614]
[1625717334764,10.70333108,33216.0,33214.0,0.5301614]
[1625717334926,3.0806578,33215.0,33212.0,0.001]
[1625717335067,1.87280562,33213.0,33212.0,0.001]
[1625717335216,3.12154459,33213.0,33212.0,0.001]
[1625717335365,3.1367766,33213.0,33212.0,0.00514342]
[1625717335814,3.12154459,33213.0,33212.0,0.001]
[1625717335966,4.12154459,33213.0,33212.0,0.001]
[1625717336115,4.13677783,33213.0,33212.0,0.00514392]
[1625717336416,4.13677783,33213.0,33212.0,0.001]
[1625717337166,4.13677783,33213.0,33212.0,0.00514392]
[1625717338218,4.12154459,33213.0,33212.0,0.00514392]
[1625717339344,3.12154459,33213.0,33212.0,0.00514392]
[1625717339495,0.56784254,33213.0,33212.0,0.53478931]
[1625717339645,0.56784254,33213.0,33212.0,0.00514392]
[1625717339945,1.76091874,33213.0,33212.0,0.00514392]
[1625717340247,1.85111874,33213.0,33212.0,0.00514392]
[1625717340395,1.85111874,33213.0,33212.0,0.53478681]
[1625717340396,0.65804254,33213.0,33212.0,0.53478681]
[1625717341296,0.65804254,33213.0,33212.0,0.00514392]
[1625717341446,0.56784254,33213.0,33212.0,0.00514392]
[1625717341820,1.76095661,33213.0,33212.0,0.00514392]
[1625717344224,0.56784254,33213.0,33212.0,0.00514392]
[1625717344521,0.56784254,33213.0,33212.0,0.5346779]
[1625717344972,0.057,33213.0,33212.0,0.5346779]
[1625717345122,0.51208271,33214.0,33212.0,0.5346779]
[1625717345274,0.51220791,33215.0,33212.0,1.77017074]
[1625717345425,0.51220791,33215.0,33214.0,0.52949556]
[1625717345723,6.10631722,33216.0,33214.0,0.52949556]
[1625717345873,5.59400176,33216.0,33215.0,0.52947825]
[1625717346022,5.59400176,33216.0,33215.0,0.5336223]
[1625717346624,5.59400176,33216.0,33215.0,1.76922329]
[1625717347222,5.65100176,33216.0,33215.0,1.76922329]
[1625717347373,5.65200176,33216.0,33215.0,0.5336223]
[1625717347973,5.65200176,33216.0,33215.0,1.76931071]
[1625717348273,5.65200176,33216.0,33215.0,0.5336223]
[1625717348583,6.16461163,33216.0,33215.0,0.5336223]
[1625717349329,6.10761163,33216.0,33215.0,0.5336223]
[1625717350083,5.59500176,33216.0,33215.0,3.18217807]
[1625717350458,5.65200176,33216.0,33215.0,3.18217807]
[1625717350608,5.59500176,33216.0,33215.0,3.18217807]
[1625717351284,5.59500176,33216.0,33215.0,1.76961499]
[1625717351734,5.65200176,33216.0,33215.0,1.76961499]
[1625717352185,6.16504261,33216.0,33215.0,1.76961499]
[1625717353096,6.50860261,33216.0,33215.0,1.76961499]
[1625717355043,6.50860261,33216.0,33215.0,0.5336223]
[1625717355947,9.06959826,33216.0,33215.0,0.00414405]
[1625717356094,10.06959826,33216.0,33215.0,0.00414405]
[1625717356257,10.06959826,33216.0,33212.0,0.53012984]
[1625717356410,10.06859826,33216.0,33212.0,0.53112984]
[1625717356544,3.07148233,33213.0,33212.0,0.001]
[1625717356696,3.12848233,33213.0,33212.0,0.001]
[1625717356844,4.12848233,33213.0,33212.0,0.001]
[1625717356994,3.12848233,33213.0,33212.0,0.001]
[1625717357144,4.12848233,33213.0,33212.0,0.001]
[1625717358195,3.12848233,33213.0,33212.0,0.001]
[1625717358347,4.12848233,33213.0,33212.0,0.001]
[1625717358574,4.12848233,33213.0,33212.0,0.35448954]
[1625717358872,3.12848233,33213.0,33212.0,0.35448954]
[1625717359023,3.12848233,33213.0,33212.0,0.884715]
[1625717360304,3.12848233,33213.0,33212.0,0.35448954]
[1625717360450,4.12848233,33213.0,33212.0,0.35448954]
[1625717360756,4.12848233,33213.0,33212.0,0.001]
[1625717361347,3.12848233,33213.0,33212.0,0.001]
[1625717361954,3.12848233,33213.0,33212.0,0.3545598]
[1625717362104,1.76343594,33213.0,33212.0,0.001]
[1625717362248,1.76343594,33213.0,33212.0,0.53131255]
[1625717362399,3.12973633,33213.0,33212.0,0.88485429]
[1625717362701,1.76343594,33213.0,33212.0,0.53131255]
[1625717363152,1.70643594,33213.0,33212.0,0.53131255]
[1625717363451,1.70643594,33213.0,33212.0,0.53545375]
[1625717363754,1.76343594,33213.0,33212.0,0.53545375]
[1625717363901,1.76343594,33213.0,33212.0,0.53131255]
[1625717364502,3.13279193,33213.0,33212.0,0.53131255]
[1625717364807,3.13279193,33213.0,33212.0,0.53545351]
[1625717364951,3.13279193,33213.0,33212.0,0.53131255]
[1625717365402,3.13279193,33213.0,33212.0,0.53031255]
[1625717365702,4.49924664,33213.0,33212.0,0.53031255]
[1625717366308,3.13279193,33213.0,33212.0,0.53031255]
[1625717366605,3.13279193,33213.0,33212.0,0.5344535]
[1625717367357,3.07579193,33213.0,33212.0,0.5344535]
[1625717368258,3.13279193,33213.0,33212.0,0.5344535]
[1625717377117,5.499362,33213.0,33212.0,0.88795913]
[1625717377267,5.499362,33213.0,33212.0,0.35764658]
[1625717379370,5.499362,33213.0,33212.0,0.00414095]
[1625717379673,5.499362,33213.0,33212.0,0.35766183]
[1625717379824,5.499362,33213.0,33209.0,1.06154655]
[1625717379825,5.499362,33213.0,33210.0,0.35352409]
[1625717380123,4.09728308,33211.0,33210.0,0.35352409]
[1625717380271,5.15428308,33211.0,33210.0,0.35352409]
[1625717380421,5.15428308,33211.0,33209.0,0.35452404]
[1625717380571,1.057,33211.0,33210.0,0.00414224]
[1625717380872,5.15189369,33211.0,33210.0,0.00414224]
[1625717381472,5.63304457,33211.0,33210.0,0.00414224]
[1625717381774,4.63304457,33211.0,33210.0,0.00414224]
[1625717382074,5.63304457,33211.0,33210.0,0.00414224]
[1625717382374,5.64828549,33211.0,33210.0,0.00414224]
[1625717383349,10.84598549,33211.0,33210.0,0.00414224]
[1625717384100,10.83074457,33211.0,33210.0,0.00414224]
[1625717384550,10.84598309,33211.0,33210.0,0.00414224]
[1625717386728,10.84598309,33211.0,33209.0,0.35759112]
[1625717387028,6.7510894,33211.0,33210.0,0.00414281]
[1625717387328,10.83125219,33211.0,33210.0,0.00414281]
[1625717387479,10.84649073,33211.0,33210.0,0.00414281]
[1625717388530,10.84649073,33211.0,33209.0,0.18086346]
[1625717388679,11.16499073,33211.0,33209.0,0.00414281]
[1625717388830,4.10979086,33210.0,33208.0,0.53016469]
[1625717388980,0.057,33209.0,33208.0,0.53016469]
[1625717389129,4.15179036,33209.0,33208.0,0.53016469]
[1625717389433,4.15179036,33209.0,33208.0,0.53430759]
[1625717389580,4.3923658,33209.0,33208.0,0.53430759]
[1625717389880,3.02749254,33209.0,33208.0,0.53430759]
[1625717390030,4.02749254,33209.0,33208.0,0.53430759]
[1625717391685,3.02749254,33209.0,33208.0,0.53430759]
[1625717391838,4.02749254,33209.0,33208.0,0.53430759]
[1625717393338,3.02749254,33209.0,33208.0,0.53430759]
[1625717393944,4.02749254,33209.0,33208.0,0.88780286]
[1625717394242,4.02749254,33209.0,33208.0,0.53435994]
[1625717394391,4.71026779,33209.0,33208.0,0.53435994]
[1625717394543,3.71026779,33209.0,33208.0,0.53435994]
[1625717395684,0.98035069,33209.0,33208.0,0.53435994]
[1625717395817,0.98035069,33209.0,33208.0,0.53432513]
[1625717395965,1.33218069,33209.0,33208.0,0.53432513]
[1625717396117,2.69696673,33209.0,33208.0,0.53432513]
[1625717396265,2.71220526,33209.0,33208.0,0.53432513]
[1625717396566,2.69696673,33209.0,33208.0,0.18087031]
[1625717397391,2.71220558,33209.0,33208.0,0.18087031]
[1625717397541,2.71220558,33209.0,33208.0,0.0041429]
[1625717398216,3.71220558,33209.0,33208.0,0.0041429]
[1625717399797,5.24580492,33209.0,33208.0,0.0041429]
[1625717399947,5.24580492,33209.0,33206.0,0.00414194]
[1625717400246,4.77004433,33207.0,33206.0,0.00414194]
[1625717400394,4.82704433,33207.0,33206.0,4.194e-05]
[1625717400545,7.37435756,33207.0,33205.0,0.001]
[1625717400697,6.29736504,33206.0,33201.0,0.17670003]
[1625717400847,0.057,33205.0,33201.0,0.17670003]
[1625717401071,0.057,33205.0,33200.0,0.002]
[1625717401072,5.76239173,33202.0,33200.0,0.002]
[1625717401221,4.81662896,33201.0,33200.0,0.002]
[1625717401371,4.81662896,33201.0,33199.0,0.002]
[1625717401674,2.4320794,33201.0,33200.0,0.00413838]
[1625717401824,2.41682115,33201.0,33200.0,0.00413838]
[1625717401975,10.06281793,33201.0,33200.0,0.00413838]
[1625717402123,11.07807618,33201.0,33200.0,0.00413838]
[1625717402801,11.07807618,33201.0,33199.0,0.002]
[1625717402949,12.60732783,33201.0,33199.0,0.002]
[1625717403098,6.28637409,33200.0,33199.0,0.002]
[1625717403248,6.35863385,33200.0,33199.0,0.002]
[1625717403550,7.59920929,33200.0,33194.0,0.003]
[1625717403712,7.08036017,33200.0,33193.0,0.47079479]
[1625717403850,8.08036017,33200.0,33192.0,0.17655247]
[1625717404000,1.0,33195.0,33194.0,0.00085002]
[1625717404150,1.0,33195.0,33189.0,0.004]
[1625717404151,4.74561826,33193.0,33189.0,0.004]
[1625717404299,0.057,33192.0,33188.0,0.17655948]
[1625717404449,0.057,33192.0,33189.0,0.004]
[1625717404450,3.38810948,33190.0,33189.0,0.004]
[1625717404600,4.79949412,33190.0,33189.0,0.004]
[1625717404750,4.81466438,33190.0,33189.0,0.00816248]
[1625717404899,8.44116438,33190.0,33189.0,0.00436248]
[1625717405425,7.08677974,33190.0,33189.0,0.00436248]
[1625717405577,7.62273549,33190.0,33189.0,0.00436248]
[1625717406476,6.62273549,33190.0,33189.0,0.00436248]
[1625717406627,7.62273549,33190.0,33189.0,0.00436248]
[1625717407079,6.59116626,33190.0,33189.0,0.0002]
[1625717407377,6.00391049,33190.0,33189.0,0.0002]
[1625717407680,5.00391049,33190.0,33189.0,0.0002]
[1625717407828,6.68562231,33190.0,33189.0,0.0002]
[1625717407979,7.68562231,33190.0,33189.0,0.0002]
[1625717409630,8.86307243,33190.0,33189.0,0.0002]
[1625717409781,8.77267243,33190.0,33189.0,0.0002]
[1625717410082,7.59522231,33190.0,33189.0,0.0002]
[1625717411733,7.68502231,33190.0,33189.0,0.0002]
[1625717412184,6.52922885,33190.0,33189.0,0.0002]
[1625717412334,6.58622885,33190.0,33189.0,0.0002]
[1625717412934,6.52922885,33190.0,33189.0,0.0002]
[1625717413084,5.85651049,33190.0,33189.0,0.0002]
[1625717413386,5.91351049,33190.0,33189.0,0.0002]
[1625717413536,6.00331049,33190.0,33189.0,0.0002]
[1625717413835,5.91351049,33190.0,33189.0,0.0002]
[1625717414061,6.58758314,33190.0,33189.0,0.0002]
[1625717414210,5.58758314,33190.0,33189.0,0.0002]
[1625717414811,4.91351049,33190.0,33189.0,0.0002]
[1625717416689,4.40522632,33190.0,33189.0,0.0002]
[1625717416838,4.34822632,33190.0,33189.0,0.0002]
[1625717420829,0.72172632,33190.0,33189.0,0.263813]
[1625717420978,0.001,33192.0,33189.0,0.263813]
[1625717421128,0.001,33192.0,33189.0,1.23036588]
[1625717421279,0.001,33192.0,33191.0,0.52724457]
[1625717421428,0.001,33192.0,33191.0,0.78238457]
[1625717421585,0.001,33192.0,33191.0,1.48536564]
[1625717421730,0.001,33192.0,33191.0,3.5021155]
[1625717422255,0.001,33192.0,33191.0,1.74468633]
[1625717422408,0.001,33192.0,33191.0,1.39318342]
[1625717422931,0.001,33192.0,33191.0,2.44759847]
[1625717423533,0.001,33192.0,33191.0,3.50217415]
[1625717424581,0.001,33192.0,33191.0,3.50633105]
[1625717424883,0.001,33192.0,33191.0,4.73665852]
[1625717425332,0.001,33194.0,33191.0,3.50633105]
[1625717425632,0.001,33194.0,33193.0,0.52737351]
[1625717426083,0.001,33194.0,33193.0,1.23054525]
[1625717426683,0.001,33194.0,33193.0,0.52737351]
[1625717426834,0.001,33194.0,33193.0,1.23054014]
[1625717427134,0.001,33194.0,33193.0,0.52737351]
[1625717427584,0.001,33194.0,33193.0,1.23481032]
[1625717428484,0.001,33194.0,33193.0,2.28976668]
[1625717433817,0.001,33194.0,33193.0,3.52129579]
[1625717434115,0.001,33194.0,33193.0,2.28976668]
[1625717435167,0.001,33194.0,33193.0,4.92878651]
[1625717435467,0.24057544,33203.0,33193.0,4.92878651]
[1625717435767,0.24057544,33203.0,33202.0,0.74504431]
[1625717435918,0.24057544,33203.0,33202.0,0.56911536]
[1625717436217,4.53167544,33203.0,33202.0,0.48115088]
[1625717436518,4.53167544,33203.0,33202.0,0.74509338]
[1625717436968,4.53167544,33203.0,33202.0,0.48115088]
[1625717437269,5.71732967,33203.0,33202.0,0.48115088]
[1625717438393,4.53167544,33203.0,33202.0,0.48115088]
[1625717438543,4.78596565,33203.0,33202.0,0.48115088]
[1625717438729,4.53167544,33203.0,33202.0,0.48115088]
[1625717440197,4.53167544,33203.0,33202.0,0.56916735]
[1625717440495,0.24057544,33203.0,33202.0,0.749356]
[1625717440648,0.003,33206.0,33202.0,2.77362606]
[1625717440944,0.003,33206.0,33203.0,0.00415804]
[1625717441396,0.003,33206.0,33205.0,0.17601894]
[1625717441698,0.003,33206.0,33205.0,1.23211897]
[1625717441847,0.003,33206.0,33205.0,1.47685227]
[1625717442147,0.004,33211.0,33205.0,1.47685227]
[1625717442598,0.004,33211.0,33209.0,0.08799425]
[1625717442748,1.26363162,33216.0,33209.0,0.32039425]
[1625717443046,1.26363162,33216.0,33210.0,0.00415684]
[1625717443047,0.24557544,33216.0,33210.0,0.00415684]
[1625717443348,0.24557544,33216.0,33212.0,1.05573021]
[1625717443349,0.24057544,33216.0,33212.0,1.05573021]
[1625717443647,0.24057544,33216.0,33211.0,1.05517962]
[1625717443798,0.24057544,33216.0,33215.0,0.72172632]
[1625717447476,0.29757544,33216.0,33215.0,0.72172632]
[1625717447929,2.50016438,33216.0,33215.0,0.72172632]
[1625717449432,2.44316438,33216.0,33215.0,0.72172632]
[1625717449740,2.50016438,33216.0,33215.0,0.72172632]
[1625717449881,1.31416798,33216.0,33215.0,0.72172632]
[1625717451008,2.49958414,33216.0,33215.0,0.72172632]
[1625717453184,1.31416798,33216.0,33215.0,0.72172632]
[1625717454084,0.52464544,33216.0,33215.0,0.72172632]
[1625717454385,1.540621,33216.0,33215.0,0.72172632]
[1625717455139,2.7253252,33216.0,33215.0,0.72172632]
[1625717455434,2.6683252,33216.0,33215.0,0.72172632]
[1625717455735,1.540621,33216.0,33215.0,0.72172632]
[1625717456037,5.257521,33216.0,33215.0,0.72172632]
[1625717458667,4.18454544,33216.0,33215.0,0.72172632]
[1625717458816,4.24154544,33216.0,33215.0,0.72172632]
[1625717458973,4.18454544,33216.0,33215.0,0.72172632]
[1625717459944,3.95747544,33216.0,33215.0,0.72172632]
[1625717460094,1.01638222,33218.0,33215.0,0.72172632]
[1625717460393,0.001,33219.0,33215.0,0.72172632]
[1625717460638,0.001,33219.0,33216.0,0.00415793]
[1625717461670,0.001,33219.0,33215.0,0.72172632]
[1625717462122,0.058,33219.0,33215.0,0.72172632]
[1625717462285,0.31803,33219.0,33215.0,0.72172632]
[1625717462422,1.50360662,33219.0,33215.0,0.72172632]
[1625717462570,1.01623272,33218.0,33215.0,0.72172632]
[1625717462722,0.057,33217.0,33215.0,0.72172632]
[1625717462871,1.01546242,33216.0,33215.0,0.72172632]
[1625717463022,1.07246242,33216.0,33215.0,0.72172632]
[1625717464754,0.057,33216.0,33215.0,0.72172632]
[1625717465050,1.07209137,33216.0,33215.0,0.72172632]
[1625717465650,1.01576422,33217.0,33215.0,0.72172632]
[1625717465800,0.057,33216.0,33215.0,0.72172632]
[1625717466101,1.07273253,33216.0,33215.0,0.72172632]
[1625717467530,1.08787354,33216.0,33215.0,0.72172632]
[1625717469405,2.27319979,33216.0,33215.0,0.72172632]
[1625717471658,1.01738245,33217.0,33215.0,0.72589048]
[1625717471959,1.01738245,33217.0,33216.0,0.00416406]
[1625717472183,1.01762973,33218.0,33216.0,0.00416406]
[1625717472332,0.057,33217.0,33216.0,0.00416406]
[1625717472495,1.07427304,33217.0,33216.0,0.00416406]
[1625717473086,0.057,33217.0,33216.0,0.00416406]
[1625717473610,1.01767807,33217.0,33216.0,0.00416406]
[1625717473834,0.01513964,33217.0,33216.0,0.00416406]
[1625717474662,1.0190904,33219.0,33216.0,0.00416406]
[1625717474813,1.0190904,33219.0,33216.0,0.27958406]
[1625717475114,1.0190904,33219.0,33217.0,0.00416377]
[1625717475938,0.001,33219.0,33217.0,0.00416377]
[1625717476238,1.01968933,33220.0,33217.0,0.00416377]
[1625717477365,1.01890307,33219.0,33217.0,0.00416377]
[1625717477515,1.07590307,33219.0,33217.0,0.00416377]
[1625717477667,1.01865504,33218.0,33217.0,0.00416377]
[1625717478043,1.01865504,33218.0,33216.0,0.0041633]
[1625717478192,1.01865504,33218.0,33217.0,0.00416324]
[1625717478343,1.02033154,33220.0,33217.0,0.33964324]
[1625717478493,1.02033154,33220.0,33217.0,0.33548]
[1625717478643,0.001,33220.0,33217.0,0.33548]
[1625717478792,0.001,33220.0,33218.0,0.00416301]
[1625717479097,1.01963879,33219.0,33218.0,0.00416301]
[1625717479244,1.07663879,33219.0,33218.0,0.00416301]
[1625717479545,1.07663879,33219.0,33216.0,0.00416239]
[1625717479847,1.01918297,33218.0,33216.0,0.00416239]
[1625717480147,1.07599759,33217.0,33216.0,0.00416239]
[1625717480900,1.01899759,33217.0,33216.0,0.00416239]
[1625717481349,1.01948492,33218.0,33216.0,0.00416239]
[1625717481799,1.01980426,33219.0,33216.0,0.00416239]
[1625717483913,1.0214283,33220.0,33216.0,0.00416239]
[1625717484056,0.001,33220.0,33219.0,0.24057544]
[1625717484274,1.02112233,33220.0,33219.0,0.24057544]
[1625717484424,1.02112233,33220.0,33219.0,0.24474039]
[1625717484880,2.26792654,33220.0,33219.0,0.24474039]
[1625717485326,2.26692654,33220.0,33219.0,0.24474039]
[1625717485477,2.26692654,33220.0,33219.0,0.24057544]
[1625717485627,2.26692654,33220.0,33219.0,0.24474059]
[1625717485929,3.62657624,33220.0,33219.0,0.24474059]
[1625717486078,3.62657624,33220.0,33219.0,0.24057544]
[1625717486678,3.64170754,33220.0,33219.0,0.24057544]
[1625717488181,5.17040398,33220.0,33219.0,0.24057544]
[1625717488936,3.64170754,33220.0,33219.0,0.24057544]
[1625717489237,4.03390754,33220.0,33213.0,0.001]
[1625717489387,6.56150261,33220.0,33213.0,0.001]
[1625717489539,0.01513368,33219.0,33213.0,0.001]
[1625717489694,6.08551487,33214.0,33213.0,0.001]
[1625717489838,6.14251487,33214.0,33213.0,0.001]
[1625717489987,6.14251487,33214.0,33203.0,0.003]
[1625717489988,7.83617901,33214.0,33203.0,0.003]
[1625717490138,0.48115088,33204.0,33203.0,0.003]
[1625717490288,0.85394088,33204.0,33203.0,0.003]
[1625717490440,3.05564602,33204.0,33203.0,0.003]
[1625717491265,4.41101074,33204.0,33202.0,0.003]
[1625717491419,3.20292161,33203.0,33202.0,0.003]
[1625717491565,2.25992161,33203.0,33202.0,0.003]
[1625717491941,7.58102161,33203.0,33202.0,0.003]
[1625717492092,6.39484608,33203.0,33202.0,0.003]
[1625717492543,6.62793608,33203.0,33202.0,0.003]
[1625717492844,7.62793608,33203.0,33202.0,0.003]
[1625717492995,8.81367165,33203.0,33202.0,0.003]
[1625717494195,7.81367165,33203.0,33202.0,0.003]
[1625717494496,8.81367165,33203.0,33202.0,0.003]
[1625717495261,7.81367165,33203.0,33202.0,0.003]
[1625717495548,6.62793608,33203.0,33202.0,0.003]
[1625717495706,6.62793608,33203.0,33198.0,1.05921024]
[1625717495851,6.62793608,33203.0,33197.0,0.004]
[1625717495852,10.16785225,33203.0,33197.0,0.004]
[1625717496017,1.01501865,33198.0,33197.0,0.004]
[1625717496165,1.55316953,33198.0,33197.0,0.004]
[1625717496302,5.08785705,33198.0,33197.0,0.004]
[1625717497277,4.08785705,33198.0,33193.0,0.002]
[1625717497427,5.08785705,33198.0,33193.0,0.002]
[1625717497728,1.0139941,33194.0,33193.0,0.002]
[1625717497877,1.4022041,33194.0,33193.0,0.002]
[1625717498026,2.4022041,33194.0,33193.0,0.002]
[1625717498178,2.64277954,33194.0,33193.0,0.002]
[1625717498629,1.64277954,33194.0,33193.0,0.002]
[1625717498782,2.64277954,33194.0,33193.0,0.002]
[1625717499080,1.62878544,33194.0,33193.0,0.002]
[1625717499230,2.64147977,33194.0,33193.0,0.002]
[1625717499755,1.64147977,33194.0,33193.0,0.002]
[1625717500055,2.64147977,33194.0,33193.0,0.002]
[1625717500956,1.62878544,33194.0,33193.0,0.002]
[1625717501930,0.62878544,33194.0,33193.0,0.002]
[1625717502231,1.62878544,33194.0,33193.0,0.002]
[1625717502981,0.29757544,33194.0,33193.0,0.002]
[1625717503283,1.29757544,33194.0,33193.0,0.002]
[1625717503886,0.29757544,33194.0,33193.0,0.002]
[1625717506288,0.29757544,33194.0,33191.0,0.24057544]
[1625717506589,1.29757544,33194.0,33191.0,0.24057544]